[Event "*** Titled Tuesday Blitz"]
[Site "Chess.com"]
[Date "2021.03.09"]
[Round "1"]
[White "Cambek64"]
[Black "superjem123"]
[Result "0-1"]
[WhiteElo "2397"]
[BlackElo "2731"]
[TimeControl "180+1"]
[EndTime "10:05:45 PST"]
[Termination "superjem123 won on time"]

1. e3 {[%clk 0:02:56.2]} 1... g6 {[%clk 0:02:59.3]} 2. d4 {[%clk 0:02:56]} 2...
c5 {[%clk 0:02:59.7]} 3. Nf3 {[%clk 0:02:56.2]} 3... Bg7 {[%clk 0:03:00]} 4. d5
{[%clk 0:02:55.2]} 4... Nf6 {[%clk 0:02:58.8]} 5. c4 {[%clk 0:02:55]} 5... O-O
{[%clk 0:02:59.5]} 6. Nc3 {[%clk 0:02:54.6]} 6... e6 {[%clk 0:03:00]} 7. e4
{[%clk 0:02:54.8]} 7... exd5 {[%clk 0:03:00.3]} 8. exd5 {[%clk 0:02:54.4]} 8...
Re8+ {[%clk 0:03:00.7]} 9. Be2 {[%clk 0:02:54.6]} 9... d6 {[%clk 0:03:00.7]} 10.
O-O {[%clk 0:02:54.7]} 10... Ne4 {[%clk 0:02:59.2]} 11. Nxe4 {[%clk 0:02:53.1]}
11... Rxe4 {[%clk 0:03:00.1]} 12. Bd3 {[%clk 0:02:53.5]} 12... Re8 {[%clk
0:03:00.1]} 13. Bg5 {[%clk 0:02:46.6]} 13... Qb6 {[%clk 0:02:56.9]} 14. Rb1
{[%clk 0:02:45.8]} 14... Bg4 {[%clk 0:02:56.8]} 15. h3 {[%clk 0:02:45]} 15...
Bxf3 {[%clk 0:02:57.3]} 16. Qxf3 {[%clk 0:02:45.6]} 16... Nd7 {[%clk 0:02:58.2]}
17. Bf4 {[%clk 0:02:45.6]} 17... Ne5 {[%clk 0:02:58.1]} 18. Bxe5 {[%clk
0:02:45.7]} 18... Rxe5 {[%clk 0:02:59]} 19. Rfe1 {[%clk 0:02:36.9]} 19... Rae8
{[%clk 0:02:59.1]} 20. Rxe5 {[%clk 0:02:36]} 20... Bxe5 {[%clk 0:03:00]} 21. g3
{[%clk 0:02:34.2]} 21... Qa5 {[%clk 0:02:57.7]} 22. a3 {[%clk 0:02:15.6]} 22...
Qd2 {[%clk 0:02:56.8]} 23. Qd1 {[%clk 0:02:15.1]} 23... Qxd1+ {[%clk 0:02:25.7]}
24. Rxd1 {[%clk 0:02:11.7]} 24... Bxb2 {[%clk 0:02:26.6]} 25. Rb1 {[%clk
0:02:12.3]} 25... Bxa3 {[%clk 0:02:27]} 26. Rxb7 {[%clk 0:02:10.9]} 26... Re1+
{[%clk 0:02:17.7]} 27. Kg2 {[%clk 0:02:09]} 27... Rd1 {[%clk 0:02:16.6]} 28. Be2
{[%clk 0:02:05.9]} 28... Rd2 {[%clk 0:02:15.7]} 29. Rxa7 {[%clk 0:02:04.4]}
29... Rxe2 {[%clk 0:02:13.9]} 30. Rxa3 {[%clk 0:02:03.3]} 30... Kf8 {[%clk
0:02:10.1]} 31. Ra8+ {[%clk 0:01:41.1]} 31... Re8 {[%clk 0:02:05.9]} 32. Rxe8+
{[%clk 0:01:38.5]} 32... Kxe8 {[%clk 0:02:06.8]} 33. Kf3 {[%clk 0:01:38.6]}
33... Kd7 {[%clk 0:02:07.1]} 34. Ke3 {[%clk 0:01:37.8]} 34... Kc7 {[%clk
0:02:02.6]} 35. Kd3 {[%clk 0:01:38.1]} 35... Kd7 {[%clk 0:02:02.1]} 36. Kc3
{[%clk 0:01:34.4]} 36... Ke7 {[%clk 0:02:02.4]} 0-1

[Event "*** Titled Tuesday Blitz"]
[Site "Chess.com"]
[Date "2021.03.09"]
[Round "1"]
[White "UmarovSabir"]
[Black "Vesper2018"]
[Result "0-1"]
[WhiteElo "2288"]
[BlackElo "2594"]
[TimeControl "180+1"]
[EndTime "10:05:45 PST"]
[Termination "Vesper2018 won on time"]

1. e4 {[%clk 0:02:58.5]} 1... c5 {[%clk 0:02:58.8]} 2. Nf3 {[%clk 0:02:57]} 2...
d6 {[%clk 0:02:58.4]} 3. d4 {[%clk 0:02:56.4]} 3... cxd4 {[%clk 0:02:58.5]} 4.
Qxd4 {[%clk 0:02:55.5]} 4... Nc6 {[%clk 0:02:56.4]} 5. Qe3 {[%clk 0:02:54.8]}
5... g6 {[%clk 0:02:54.7]} 6. c4 {[%clk 0:02:53.1]} 6... Bg7 {[%clk 0:02:54.5]}
7. Be2 {[%clk 0:02:48.5]} 7... Nf6 {[%clk 0:02:46.5]} 8. O-O {[%clk 0:02:45.6]}
8... O-O {[%clk 0:02:46.5]} 9. Nc3 {[%clk 0:02:43.8]} 9... Ne8 {[%clk
0:02:33.3]} 10. Rd1 {[%clk 0:02:29.2]} 10... Bg4 {[%clk 0:02:28.2]} 11. h3
{[%clk 0:01:43.8]} 11... Bxf3 {[%clk 0:02:27.3]} 12. Bxf3 {[%clk 0:01:44.6]}
12... Nc7 {[%clk 0:02:20.6]} 13. b3 {[%clk 0:01:30.7]} 13... Ne6 {[%clk
0:02:17.7]} 14. Bb2 {[%clk 0:01:29.6]} 14... Ned4 {[%clk 0:02:16.3]} 15. Rac1
{[%clk 0:01:27.4]} 15... e5 {[%clk 0:02:10.6]} 16. Nd5 {[%clk 0:01:21.4]} 16...
f5 {[%clk 0:02:01.8]} 17. exf5 {[%clk 0:01:06.3]} 17... gxf5 {[%clk 0:02:01.6]}
18. Bxd4 {[%clk 0:00:31.7]} 18... Nxd4 {[%clk 0:01:56.8]} 19. Rxd4 {[%clk
0:00:30.7]} 19... exd4 {[%clk 0:01:56.6]} 20. Qe6+ {[%clk 0:00:29.6]} 20... Kh8
{[%clk 0:01:52.6]} 21. Nf4 {[%clk 0:00:28.6]} 21... Qg5 {[%clk 0:01:40.7]} 22.
g3 {[%clk 0:00:25.3]} 22... Rae8 {[%clk 0:01:36.7]} 23. Qxd6 {[%clk 0:00:24.1]}
23... Be5 {[%clk 0:01:36.7]} 24. h4 {[%clk 0:00:17.8]} 24... Qg7 {[%clk
0:01:25.4]} 0-1

[Event "*** Titled Tuesday Blitz"]
[Site "Chess.com"]
[Date "2021.03.09"]
[Round "1"]
[White "Gabrielian_Artur"]
[Black "Aslanov_Umid"]
[Result "1-0"]
[WhiteElo "2799"]
[BlackElo "2420"]
[TimeControl "180+1"]
[EndTime "10:05:49 PST"]
[Termination "Gabrielian_Artur won by checkmate"]

1. e4 {[%clk 0:03:00.4]} 1... c5 {[%clk 0:02:59.7]} 2. Nc3 {[%clk 0:02:59.9]}
2... d6 {[%clk 0:02:59.6]} 3. d4 {[%clk 0:02:59.7]} 3... cxd4 {[%clk 0:02:59.3]}
4. Qxd4 {[%clk 0:03:00.3]} 4... a6 {[%clk 0:02:55.8]} 5. b3 {[%clk 0:02:59.9]}
5... Nc6 {[%clk 0:02:55.6]} 6. Qd2 {[%clk 0:03:00]} 6... g6 {[%clk 0:02:53.5]}
7. Bb2 {[%clk 0:02:59.8]} 7... Bg7 {[%clk 0:02:53.9]} 8. O-O-O {[%clk
0:02:59.7]} 8... Nf6 {[%clk 0:02:51.2]} 9. f3 {[%clk 0:02:58.6]} 9... O-O {[%clk
0:02:50]} 10. h4 {[%clk 0:02:58.9]} 10... b5 {[%clk 0:02:34.8]} 11. Nd5 {[%clk
0:02:49]} 11... Nxd5 {[%clk 0:01:56.9]} 12. exd5 {[%clk 0:02:48.1]} 12... Ne5
{[%clk 0:01:45.3]} 13. h5 {[%clk 0:02:47.9]} 13... Bd7 {[%clk 0:01:11.2]} 14. f4
{[%clk 0:02:43.3]} 14... Ng4 {[%clk 0:01:05.2]} 15. Bxg7 {[%clk 0:02:42.8]}
15... Kxg7 {[%clk 0:01:06.1]} 16. Be2 {[%clk 0:02:42.3]} 16... Nf6 {[%clk
0:01:04.3]} 17. hxg6 {[%clk 0:02:38.7]} 17... hxg6 {[%clk 0:01:05.2]} 18. Nf3
{[%clk 0:02:36.4]} 18... Rc8 {[%clk 0:01:03.2]} 19. f5 {[%clk 0:02:30.9]} 19...
Rh8 {[%clk 0:00:58.5]} 20. fxg6 {[%clk 0:02:28.7]} 20... fxg6 {[%clk 0:00:54.5]}
21. Bd3 {[%clk 0:02:21]} 21... Qf8 {[%clk 0:00:13.7]} 22. Nh4 {[%clk 0:02:06.6]}
22... Nxd5 {[%clk 0:00:11]} 23. Rdf1 {[%clk 0:02:02.7]} 23... Qd8 {[%clk
0:00:07.4]} 24. Bxg6 {[%clk 0:02:00.8]} 24... Nc3 {[%clk 0:00:03.3]} 25. Qg5
{[%clk 0:01:45.9]} 25... e5 {[%clk 0:00:03.2]} 26. Rf7+ {[%clk 0:01:31]} 26...
Kg8 {[%clk 0:00:03.3]} 27. Rf6 {[%clk 0:01:31.6]} 27... Kg7 {[%clk 0:00:03.1]}
28. Bf5# {[%clk 0:01:28.1]} 1-0

[Event "*** Titled Tuesday Blitz"]
[Site "Chess.com"]
[Date "2021.03.09"]
[Round "1"]
[White "Kale36"]
[Black "KNCP_719"]
[Result "1-0"]
[WhiteElo "2311"]
[BlackElo "2584"]
[TimeControl "180+1"]
[EndTime "10:05:50 PST"]
[Termination "Kale36 won by checkmate"]

1. b3 {[%clk 0:02:59.6]} 1... e5 {[%clk 0:02:56.3]} 2. Bb2 {[%clk 0:02:59.5]}
2... Nc6 {[%clk 0:02:56.7]} 3. e3 {[%clk 0:02:59.6]} 3... Nf6 {[%clk 0:02:57.1]}
4. Bb5 {[%clk 0:02:59.5]} 4... Bd6 {[%clk 0:02:57.4]} 5. Na3 {[%clk 0:02:59.3]}
5... e4 {[%clk 0:02:56.6]} 6. Nc4 {[%clk 0:02:56.7]} 6... Be7 {[%clk 0:02:54]}
7. f4 {[%clk 0:02:46.2]} 7... exf3 {[%clk 0:02:07.5]} 8. Nxf3 {[%clk 0:02:41.8]}
8... O-O {[%clk 0:02:07.7]} 9. O-O {[%clk 0:02:29.5]} 9... d5 {[%clk 0:02:06.1]}
10. Bxc6 {[%clk 0:02:21.2]} 10... bxc6 {[%clk 0:01:52.2]} 11. Nce5 {[%clk
0:02:20.5]} 11... Qe8 {[%clk 0:01:51.9]} 12. Nd4 {[%clk 0:02:06.2]} 12... c5
{[%clk 0:01:32.5]} 13. Nf5 {[%clk 0:02:05]} 13... Bd6 {[%clk 0:01:27.6]} 14.
Nxg7 {[%clk 0:01:33]} 14... Kxg7 {[%clk 0:01:21.3]} 15. Ng4 {[%clk 0:01:32.8]}
15... d4 {[%clk 0:00:51.5]} 16. Nxf6 {[%clk 0:01:32.9]} 16... Qe5 {[%clk
0:00:50]} 17. Qh5 {[%clk 0:01:26.7]} 17... Qxh5 {[%clk 0:00:38]} 18. Nxh5+
{[%clk 0:01:27.6]} 18... Kh6 {[%clk 0:00:35]} 19. Nf4 {[%clk 0:01:21.7]} 19...
dxe3 {[%clk 0:00:28.3]} 20. dxe3 {[%clk 0:01:21]} 20... Re8 {[%clk 0:00:27.2]}
21. Rf3 {[%clk 0:01:18.7]} 21... Bd7 {[%clk 0:00:14.6]} 22. Raf1 {[%clk
0:01:12.6]} 22... Re7 {[%clk 0:00:14.6]} 23. Rg3 {[%clk 0:01:10]} 23... Be6
{[%clk 0:00:01.7]} 24. Bg7# {[%clk 0:01:09]} 1-0

[Event "*** Titled Tuesday Blitz"]
[Site "Chess.com"]
[Date "2021.03.09"]
[Round "1"]
[White "Loy_Konstantin"]
[Black "elextranjero00"]
[Result "1/2-1/2"]
[WhiteElo "2358"]
[BlackElo "2651"]
[TimeControl "180+1"]
[EndTime "10:05:51 PST"]
[Termination "Game drawn by repetition"]

1. e4 {[%clk 0:02:57.7]} 1... c5 {[%clk 0:02:55.3]} 2. Nf3 {[%clk 0:02:57.3]}
2... e6 {[%clk 0:02:54.4]} 3. d3 {[%clk 0:02:57]} 3... Nc6 {[%clk 0:02:53.1]} 4.
g3 {[%clk 0:02:56.8]} 4... g6 {[%clk 0:02:53.1]} 5. Bg2 {[%clk 0:02:57.1]} 5...
Bg7 {[%clk 0:02:53.3]} 6. O-O {[%clk 0:02:57.4]} 6... Nge7 {[%clk 0:02:53.2]} 7.
Re1 {[%clk 0:02:56.4]} 7... e5 {[%clk 0:02:53.5]} 8. c3 {[%clk 0:02:51.9]} 8...
d6 {[%clk 0:02:52.1]} 9. a3 {[%clk 0:02:47.5]} 9... O-O {[%clk 0:02:43.8]} 10.
b4 {[%clk 0:02:45.1]} 10... a6 {[%clk 0:02:44]} 11. Nbd2 {[%clk 0:02:35.8]}
11... h6 {[%clk 0:02:38.7]} 12. Rb1 {[%clk 0:02:23.1]} 12... b5 {[%clk 0:02:21]}
13. Nb3 {[%clk 0:02:14.8]} 13... a5 {[%clk 0:02:14.6]} 14. bxc5 {[%clk 0:02:09]}
14... a4 {[%clk 0:02:14.8]} 15. cxd6 {[%clk 0:01:51.9]} 15... Qxd6 {[%clk
0:02:14.2]} 16. Na1 {[%clk 0:01:50.2]} 16... Rb8 {[%clk 0:02:01.5]} 17. Nc2
{[%clk 0:01:46.5]} 17... Be6 {[%clk 0:01:54.2]} 18. Nb4 {[%clk 0:01:38.4]} 18...
Rfd8 {[%clk 0:01:50.6]} 19. d4 {[%clk 0:00:57.7]} 19... Bb3 {[%clk 0:01:28.3]}
20. Qe2 {[%clk 0:00:46.9]} 20... Bc4 {[%clk 0:00:43.4]} 21. Qd1 {[%clk 0:00:42]}
21... Bb3 {[%clk 0:00:41.5]} 22. Qe2 {[%clk 0:00:42]} 22... Bc4 {[%clk
0:00:32.7]} 23. Qd1 {[%clk 0:00:36.7]} 23... Bb3 {[%clk 0:00:32.7]} 1/2-1/2

[Event "*** Titled Tuesday Blitz"]
[Site "Chess.com"]
[Date "2021.03.09"]
[Round "1"]
[White "halldorgretar"]
[Black "Grieve72"]
[Result "1-0"]
[WhiteElo "2245"]
[BlackElo "2527"]
[TimeControl "180+1"]
[EndTime "10:05:57 PST"]
[Termination "halldorgretar won by checkmate"]

1. d4 {[%clk 0:03:00]} 1... d5 {[%clk 0:02:48.4]} 2. c4 {[%clk 0:02:59]} 2... e6
{[%clk 0:02:48.4]} 3. Nf3 {[%clk 0:02:58.1]} 3... c6 {[%clk 0:02:46.7]} 4. g3
{[%clk 0:02:52.5]} 4... dxc4 {[%clk 0:02:45.8]} 5. Bg2 {[%clk 0:02:49.8]} 5...
b5 {[%clk 0:02:45.7]} 6. a4 {[%clk 0:02:42.8]} 6... Bb7 {[%clk 0:02:39.3]} 7.
O-O {[%clk 0:02:36.1]} 7... Nf6 {[%clk 0:02:38.6]} 8. Ne5 {[%clk 0:02:23.1]}
8... Qc8 {[%clk 0:02:38.5]} 9. b3 {[%clk 0:02:06.7]} 9... cxb3 {[%clk
0:02:35.3]} 10. Qxb3 {[%clk 0:01:49.3]} 10... b4 {[%clk 0:02:35]} 11. Nd2 {[%clk
0:01:42.1]} 11... Nbd7 {[%clk 0:02:29.1]} 12. Ndc4 {[%clk 0:01:34.1]} 12... Be7
{[%clk 0:02:26.8]} 13. a5 {[%clk 0:01:18.1]} 13... c5 {[%clk 0:02:26.4]} 14.
Bxb7 {[%clk 0:01:06]} 14... Qxb7 {[%clk 0:02:27.3]} 15. a6 {[%clk 0:00:57]}
15... Qd5 {[%clk 0:02:18.3]} 16. Nxd7 {[%clk 0:00:35.1]} 16... Nxd7 {[%clk
0:02:19.2]} 17. dxc5 {[%clk 0:00:32.2]} 17... Bxc5 {[%clk 0:01:59.2]} 18. Rd1
{[%clk 0:00:30.5]} 18... Qc6 {[%clk 0:01:59.5]} 19. Bb2 {[%clk 0:00:15.7]} 19...
O-O {[%clk 0:01:58.5]} 20. Rac1 {[%clk 0:00:14.7]} 20... Rfd8 {[%clk 0:01:47.1]}
21. Ne3 {[%clk 0:00:12.7]} 21... Qb5 {[%clk 0:01:44.2]} 22. Ng4 {[%clk
0:00:10.1]} 22... Bf8 {[%clk 0:01:35.8]} 23. Qf3 {[%clk 0:00:09.3]} 23... Qxa6
{[%clk 0:01:27.7]} 24. Nh6+ {[%clk 0:00:08.2]} 24... Kh8 {[%clk 0:01:19.7]} 25.
Qxf7 {[%clk 0:00:07.5]} 25... Nf6 {[%clk 0:01:08]} 26. Bxf6 {[%clk 0:00:06.2]}
26... gxf6 {[%clk 0:01:08.9]} 27. Qg8# {[%clk 0:00:05.3]} 1-0

[Event "*** Titled Tuesday Blitz"]
[Site "Chess.com"]
[Date "2021.03.09"]
[Round "1"]
[White "eduardoperalta"]
[Black "bogcsab"]
[Result "1-0"]
[WhiteElo "2521"]
[BlackElo "2171"]
[TimeControl "180+1"]
[EndTime "10:05:58 PST"]
[Termination "eduardoperalta won on time"]

1. d4 {[%clk 0:03:00.9]} 1... Nf6 {[%clk 0:02:59.1]} 2. c4 {[%clk 0:02:59.9]}
2... g6 {[%clk 0:02:59.5]} 3. Nc3 {[%clk 0:02:58.9]} 3... Bg7 {[%clk 0:02:59.6]}
4. e4 {[%clk 0:02:58.8]} 4... d6 {[%clk 0:02:59.1]} 5. f3 {[%clk 0:02:58.8]}
5... O-O {[%clk 0:02:56.9]} 6. Bg5 {[%clk 0:02:58.4]} 6... h6 {[%clk 0:02:55.9]}
7. Be3 {[%clk 0:02:57.7]} 7... e5 {[%clk 0:02:55.9]} 8. d5 {[%clk 0:02:54.4]}
8... Nh5 {[%clk 0:02:54]} 9. Qd2 {[%clk 0:02:53.1]} 9... Qh4+ {[%clk 0:02:51.2]}
10. Bf2 {[%clk 0:02:51.3]} 10... Qf4 {[%clk 0:02:49.7]} 11. Nge2 {[%clk
0:02:43.5]} 11... Qxd2+ {[%clk 0:02:49]} 12. Kxd2 {[%clk 0:02:43.3]} 12... f5
{[%clk 0:02:49]} 13. Be3 {[%clk 0:02:42]} 13... Na6 {[%clk 0:02:43.3]} 14. Nc1
{[%clk 0:02:34.7]} 14... fxe4 {[%clk 0:02:25.7]} 15. fxe4 {[%clk 0:02:33.1]}
15... Nc5 {[%clk 0:02:20.1]} 16. Be2 {[%clk 0:02:29.9]} 16... Nf4 {[%clk
0:02:19]} 17. g3 {[%clk 0:02:24.1]} 17... Nxe2 {[%clk 0:02:11]} 18. N1xe2 {[%clk
0:02:23.2]} 18... Bg4 {[%clk 0:02:10.7]} 19. b4 {[%clk 0:02:18.4]} 19... Na6
{[%clk 0:01:56.4]} 20. a3 {[%clk 0:02:17.2]} 20... Nb8 {[%clk 0:01:49.7]} 21.
Rhf1 {[%clk 0:02:11.2]} 21... Rxf1 {[%clk 0:01:37.7]} 22. Rxf1 {[%clk
0:02:09.7]} 22... a5 {[%clk 0:01:37.8]} 23. c5 {[%clk 0:02:02.1]} 23... axb4
{[%clk 0:01:37.4]} 24. axb4 {[%clk 0:02:00.5]} 24... Na6 {[%clk 0:01:35.4]} 25.
Rb1 {[%clk 0:01:58.1]} 25... Rf8 {[%clk 0:01:24.9]} 26. c6 {[%clk 0:01:56.8]}
26... b6 {[%clk 0:01:21.1]} 27. Ra1 {[%clk 0:01:41.5]} 27... Nxb4 {[%clk
0:01:16.1]} 28. Ra7 {[%clk 0:01:40.2]} 28... Rf7 {[%clk 0:01:14.2]} 29. Nb5
{[%clk 0:01:35.2]} 29... Bxe2 {[%clk 0:01:08.9]} 30. Kxe2 {[%clk 0:01:32.4]}
30... Nc2 {[%clk 0:01:07.3]} 31. Rxc7 {[%clk 0:01:29.4]} 31... Rxc7 {[%clk
0:00:57.3]} 32. Nxc7 {[%clk 0:01:28.4]} 32... Bf6 {[%clk 0:00:29.1]} 33. Ne6
{[%clk 0:01:26.7]} 1-0

[Event "*** Titled Tuesday Blitz"]
[Site "Chess.com"]
[Date "2021.03.09"]
[Round "1"]
[White "Philosopherrr"]
[Black "Ziyamammadov"]
[Result "1-0"]
[WhiteElo "2487"]
[BlackElo "1774"]
[TimeControl "180+1"]
[EndTime "10:05:58 PST"]
[Termination "Philosopherrr won by resignation"]

1. e4 {[%clk 0:02:59.7]} 1... e6 {[%clk 0:02:59.7]} 2. d4 {[%clk 0:02:49.5]}
2... d5 {[%clk 0:02:58.1]} 3. Nc3 {[%clk 0:02:47.6]} 3... Bb4 {[%clk 0:02:50.3]}
4. e5 {[%clk 0:02:40.8]} 4... c5 {[%clk 0:02:48.3]} 5. Bd2 {[%clk 0:02:31.3]}
5... Bxc3 {[%clk 0:02:25.9]} 6. Bxc3 {[%clk 0:02:28.9]} 6... cxd4 {[%clk
0:02:25.3]} 7. Qxd4 {[%clk 0:02:27.7]} 7... Nc6 {[%clk 0:02:24.3]} 8. Qg4 {[%clk
0:02:27.5]} 8... g6 {[%clk 0:02:21.5]} 9. O-O-O {[%clk 0:02:26.3]} 9... Nge7
{[%clk 0:02:07.9]} 10. h4 {[%clk 0:02:25.7]} 10... h5 {[%clk 0:02:05.3]} 11. Qf4
{[%clk 0:02:18.8]} 11... Nf5 {[%clk 0:01:59.9]} 12. Nf3 {[%clk 0:01:50.1]} 12...
a6 {[%clk 0:01:45.3]} 13. Ng5 {[%clk 0:01:47.6]} 13... b5 {[%clk 0:01:36.1]} 14.
f3 {[%clk 0:01:39.7]} 14... Rb8 {[%clk 0:01:11.8]} 15. g4 {[%clk 0:01:35.7]}
15... hxg4 {[%clk 0:01:02.4]} 16. fxg4 {[%clk 0:01:34.2]} 16... Nh6 {[%clk
0:01:00]} 17. Bd3 {[%clk 0:01:29.9]} 17... d4 {[%clk 0:00:47.6]} 18. Bd2 {[%clk
0:01:26.3]} 18... Qd5 {[%clk 0:00:41.7]} 19. Kb1 {[%clk 0:01:24.1]} 19... Qxe5
{[%clk 0:00:37.3]} 20. Qf3 {[%clk 0:01:22]} 20... Bb7 {[%clk 0:00:22.6]} 21.
Rhe1 {[%clk 0:01:18.1]} 21... Qd6 {[%clk 0:00:22.2]} 22. Qf6 {[%clk 0:01:16.8]}
22... Qd8 {[%clk 0:00:20.5]} 23. Qxh8+ {[%clk 0:01:16.3]} 23... Ke7 {[%clk
0:00:17.3]} 24. Qxh6 {[%clk 0:01:15.4]} 24... Qd5 {[%clk 0:00:16.2]} 25. Qg7
{[%clk 0:01:14.6]} 25... b4 {[%clk 0:00:13]} 26. Qxf7+ {[%clk 0:01:12.7]} 26...
Kd6 {[%clk 0:00:09.1]} 27. Rxe6+ {[%clk 0:01:11.6]} 1-0

[Event "*** Titled Tuesday Blitz"]
[Site "Chess.com"]
[Date "2021.03.09"]
[Round "1"]
[White "tdf98pantani"]
[Black "losersgame"]
[Result "1-0"]
[WhiteElo "2667"]
[BlackElo "2360"]
[TimeControl "180+1"]
[EndTime "10:06:01 PST"]
[Termination "tdf98pantani won on time"]

1. e4 {[%clk 0:02:59.7]} 1... e5 {[%clk 0:02:59.3]} 2. Nf3 {[%clk 0:02:59.5]}
2... Nc6 {[%clk 0:02:59.4]} 3. Nc3 {[%clk 0:02:59.8]} 3... g6 {[%clk 0:02:58.9]}
4. d4 {[%clk 0:02:58.5]} 4... exd4 {[%clk 0:02:58.7]} 5. Nd5 {[%clk 0:02:54.9]}
5... Bg7 {[%clk 0:02:45.1]} 6. Bg5 {[%clk 0:02:53.8]} 6... Nce7 {[%clk
0:02:44.7]} 7. Bc4 {[%clk 0:02:43.6]} 7... c6 {[%clk 0:02:12.7]} 8. Nxe7 {[%clk
0:02:40.5]} 8... Nxe7 {[%clk 0:02:12.7]} 9. O-O {[%clk 0:02:36.8]} 9... h6
{[%clk 0:02:05.4]} 10. Bh4 {[%clk 0:02:35.2]} 10... Qb6 {[%clk 0:01:32]} 11. c3
{[%clk 0:02:19.5]} 11... g5 {[%clk 0:01:18.7]} 12. Bg3 {[%clk 0:02:18.6]} 12...
d5 {[%clk 0:01:11.3]} 13. exd5 {[%clk 0:02:16.9]} 13... cxd5 {[%clk 0:01:11.2]}
14. Bb3 {[%clk 0:02:12.3]} 14... dxc3 {[%clk 0:00:44.3]} 15. Ba4+ {[%clk
0:02:09.4]} 15... Nc6 {[%clk 0:00:39.8]} 16. Re1+ {[%clk 0:02:08.1]} 16... Be6
{[%clk 0:00:39.3]} 17. bxc3 {[%clk 0:01:58.8]} 17... O-O {[%clk 0:00:34.4]} 18.
Rb1 {[%clk 0:01:58.4]} 18... Qa5 {[%clk 0:00:22.8]} 19. Rxb7 {[%clk 0:01:54.1]}
19... Rac8 {[%clk 0:00:19.2]} 20. h4 {[%clk 0:01:47.1]} 20... g4 {[%clk
0:00:17.2]} 21. Nd4 {[%clk 0:01:25.9]} 21... Nxd4 {[%clk 0:00:14.7]} 22. cxd4
{[%clk 0:01:26.8]} 22... h5 {[%clk 0:00:08.9]} 23. Bb3 {[%clk 0:01:24.6]} 23...
Bxd4 {[%clk 0:00:07.2]} 24. Rxe6 {[%clk 0:01:23.2]} 24... fxe6 {[%clk
0:00:02.4]} 25. Qxd4 {[%clk 0:01:23]} 25... Qe1+ {[%clk 0:00:01.8]} 26. Kh2
{[%clk 0:01:23.3]} 26... Rf7 {[%clk 0:00:01.8]} 27. Rxf7 {[%clk 0:01:22]} 27...
Kxf7 {[%clk 0:00:02.7]} 28. Qxa7+ {[%clk 0:01:20.6]} 28... Kg6 {[%clk
0:00:02.8]} 29. f4 {[%clk 0:01:12]} 1-0

[Event "*** Titled Tuesday Blitz"]
[Site "Chess.com"]
[Date "2021.03.09"]
[Round "1"]
[White "almo64"]
[Black "Dave_ChessMate"]
[Result "1-0"]
[WhiteElo "2762"]
[BlackElo "2405"]
[TimeControl "180+1"]
[EndTime "10:06:10 PST"]
[Termination "almo64 won by resignation"]

1. b3 {[%clk 0:02:58.9]} 1... Nf6 {[%clk 0:02:54.6]} 2. Bb2 {[%clk 0:02:58.7]}
2... d5 {[%clk 0:02:55.5]} 3. Nf3 {[%clk 0:02:58]} 3... c5 {[%clk 0:02:55.3]} 4.
e3 {[%clk 0:02:58.5]} 4... Nc6 {[%clk 0:02:55.4]} 5. Bb5 {[%clk 0:02:58.6]} 5...
Bd7 {[%clk 0:02:53.5]} 6. O-O {[%clk 0:02:58.2]} 6... e6 {[%clk 0:02:52.4]} 7.
d3 {[%clk 0:02:57.5]} 7... Be7 {[%clk 0:02:52.6]} 8. Nbd2 {[%clk 0:02:57.1]}
8... O-O {[%clk 0:02:52.5]} 9. e4 {[%clk 0:02:56.9]} 9... dxe4 {[%clk
0:02:51.4]} 10. dxe4 {[%clk 0:02:56.5]} 10... a6 {[%clk 0:02:50.1]} 11. Bd3
{[%clk 0:02:53.1]} 11... Nb4 {[%clk 0:02:29.3]} 12. Be2 {[%clk 0:02:52.9]} 12...
Bb5 {[%clk 0:02:23.2]} 13. e5 {[%clk 0:02:32.3]} 13... Bxe2 {[%clk 0:02:14.7]}
14. Qxe2 {[%clk 0:02:32.6]} 14... Nfd5 {[%clk 0:02:13.7]} 15. Qe4 {[%clk
0:02:32.6]} 15... Nc6 {[%clk 0:01:35.3]} 16. Rad1 {[%clk 0:02:27.6]} 16... Qc7
{[%clk 0:01:16.5]} 17. c4 {[%clk 0:02:27.2]} 17... Nb6 {[%clk 0:01:12.9]} 18.
Qb1 {[%clk 0:02:26.5]} 18... Rad8 {[%clk 0:01:07.3]} 19. Ne4 {[%clk 0:02:26.3]}
19... Rxd1 {[%clk 0:01:05.1]} 20. Rxd1 {[%clk 0:02:26.4]} 20... h6 {[%clk
0:00:47.7]} 21. g4 {[%clk 0:02:06.5]} 21... Rd8 {[%clk 0:00:46.5]} 22. Re1
{[%clk 0:02:00.8]} 22... Nd7 {[%clk 0:00:46.1]} 23. Qa1 {[%clk 0:01:51.9]} 23...
Nf8 {[%clk 0:00:45.8]} 24. h4 {[%clk 0:01:48]} 24... Ng6 {[%clk 0:00:45.8]} 25.
h5 {[%clk 0:01:43.8]} 25... Nf4 {[%clk 0:00:45.6]} 26. Rd1 {[%clk 0:01:39.5]}
26... Rxd1+ {[%clk 0:00:44.3]} 27. Qxd1 {[%clk 0:01:38.9]} 27... Qd8 {[%clk
0:00:44.6]} 28. Qxd8+ {[%clk 0:01:37.7]} 28... Nxd8 {[%clk 0:00:44.7]} 29. Kf1
{[%clk 0:01:26.4]} 29... Nc6 {[%clk 0:00:44.5]} 30. Ne1 {[%clk 0:01:24.8]} 30...
b6 {[%clk 0:00:39.7]} 31. Bc1 {[%clk 0:01:23.3]} 31... Nh3 {[%clk 0:00:35.9]}
32. f4 {[%clk 0:01:19.9]} 32... g5 {[%clk 0:00:34.9]} 33. hxg6 {[%clk
0:01:17.8]} 33... Ng5 {[%clk 0:00:35.8]} 34. fxg5 {[%clk 0:01:16.2]} 34... hxg5
{[%clk 0:00:35.2]} 35. gxf7+ {[%clk 0:01:14.4]} 35... Kxf7 {[%clk 0:00:36.1]}
36. Nf3 {[%clk 0:01:13.7]} 36... Kg6 {[%clk 0:00:35.4]} 37. Bxg5 {[%clk
0:01:11.6]} 37... Bxg5 {[%clk 0:00:34.1]} 38. Nexg5 {[%clk 0:01:11.9]} 38... b5
{[%clk 0:00:34.6]} 39. Nxe6 {[%clk 0:01:11]} 39... bxc4 {[%clk 0:00:34.6]} 40.
bxc4 {[%clk 0:01:11.3]} 40... Na5 {[%clk 0:00:35]} 41. Nxc5 {[%clk 0:01:11.4]}
1-0